[Event "2nd Bassano Easter 2022"]
[Site "Bassano del Grappa"]
[Date "2022.04.15"]
[Round "3.1"]
[White "Petkidis, Anthony"]
[Black "Bernadskiy, Vitaliy"]
[Result "1-0"]
[ECO "B10"]
[WhiteElo "2420"]
[BlackElo "2601"]
[Annotator "TA"]
[PlyCount "105"]
[EventDate "2022.04.14"]
[EventType "swiss"]
[EventCountry "ITA"]
[SourceTitle "playchess.com"]
[Source "ChessBase"]
[SourceQuality "1"]
[TimeControl "30/3600+30:1800+30"]

{[%evp 9,105,12,12,14,22,16,23,23,23,23,23,22,21,15,22,23,32,0,1,0,18,16,37,22,17,11,7,0,8,0,0,0,0,-33,-35,-29,-28,-22,-29,-31,-20,-64,-66,-68,-42,-39,-30,-70,-87,-97,-97,-103,-95,-97,-98,-126,-91,-127,-127,-137,0,0,0,0,0,0,0,0,0,0,0,0,0,0,0,0,0,0,0,0,0,0,0,-4,0,0,0,0,0,0,0,0,0,0,0,0,0,0]} 1. e4 {[%emt 0:00:14]} c6 {[%emt 0:00:05]} 2. Nf3 {[%emt 0:00:19]} d5 {[%emt 0:00:14]} 3. d3 {[%emt 0:00:11]} Bg4 {[%emt 0:00:34]} 4. Be2 {[%emt 0:02:02]} dxe4 {[%emt 0:07:39]} 5. dxe4 {[%emt 0:00:13]} Qxd1+ {[%emt 0:00:55]} 6. Kxd1 {[%emt 0:00:16] B10: Caro-Kann: 2 d3 and 2 c4.} Nd7 {[%emt 0:00:25]} 7. Nfd2 {[%emt 0:05:23]} Bxe2+ {[%emt 0:02:22]} 8. Kxe2 {[%emt 0:00:19] White has an edge.} Ngf6 {[%emt 0:00:03]} 9. f3 {[%emt 0:02:15] [#]} g5 $146 {[%emt 0:00:52][%cal Bg7g5,Bg5g4][%mdl 32]} ({Predecessor:} 9... Ne5 10. a4 g5 11. Na3 g4 12. f4 Ned7 13. e5 Nd5 14. Ne4 f5 15. exf6 exf6 {0-1 (50) Ryan,J (2293)-Turner,M (2521) Dublin 2020}) 10. Nc4 {[%emt 0:06:06]} g4 {[%emt 0:03:55]} 11. Be3 {[%emt 0:07:03]} Rg8 {[%emt 0:00:35]} 12. Nbd2 {[%emt 0:00:43]} e5 {[%emt 0:07:20]} 13. Rhf1 {[%emt 0:23:23]} gxf3+ {[%emt 0:03:39]} 14. Kxf3 {[%emt 0:01:01]} b6 {[%emt 0:02:57]} 15. g3 {[%emt 0:04:19]} Ke7 {[%emt 0:00:08]} 16. Ke2 {[%emt 0:03:26]} Ke6 {[%emt 0:06:04]} 17. Rf3 {[%emt 0:00:34]} h5 {[%emt 0:00:58]} 18. Raf1 {[%emt 0:00:39]} Be7 {[%emt 0:01:13][%cal Oh5h4]} 19. Rf5 {[%emt 0:01:05]} h4 {[%emt 0:05:45]} 20. gxh4 {[%emt 0:00:49]} Rg2+ {[%emt 0:06:51]} 21. R5f2 {[%emt 0:03:33]} Rg4 {[%emt 0:03:56][%csl LRe4,LRh4]} 22. Bg5 $1 {[%emt 0:02:49]} Nxe4 {[%emt 0:00:11]} 23. Rxf7 {[%emt 0:00:39]} Nxg5 {[%emt 0:03:06]} 24. hxg5 {[%emt 0:00:17] The board is on fire.} Rh8 {[%emt 0:00:17]} 25. R1f2 {[%emt 0:02:02]} ({Reject} 25. h4 Rhxh4 26. Ne3 Rh2+ 27. R7f2 Rxf2+ 28. Kxf2 Rf4+ 29. Ke2 Rxf1 30. Nexf1 Bxg5 $17) 25... Rxg5 {[%emt 0:00:22]} 26. R7f3 {[%emt 0:01:41]} Rgh5 {[%emt 0:00:59]} 27. Nf1 $1 {[%emt 0:00:45]} Nf6 {[%emt 0:00:03]} 28. Nce3 {[%emt 0:00:46]} Nd5 {[%emt 0:00:59]} 29. Nxd5 {[%emt 0:01:29]} cxd5 {[%emt 0:00:03]} 30. Rg2 {[%emt 0:00:00]} e4 {[%emt 0:00:00]} 31. Rfg3 {[%emt 0:05:47]} d4 {[%emt 0:09:04]} 32. Rg7 {[%emt 0:04:28]} Rb5 {[%emt 0:04:48]} 33. b3 {[%emt 0:09:24]} Rc5 {[%emt 0:02:46] [#] aiming for ...Bf6.} 34. Kd1 {[%emt 0:00:23]} Rf8 {[%emt 0:05:15]} (34... Rf5 $17 35. Ng3 Rf4) 35. R2g6+ $1 $11 {[%emt 0:03:22] The position is equal.} Rf6 {[%emt 0:07:13]} 36. Ng3 {[%emt 0:01:12][%cal Og7e7] Black must now prevent Rxe7+!} Rxg6 {[%emt 0:03:50]} 37. Rxg6+ {[%emt 0:00:06][%mdl 4096] Endgame KRB-KRN} Kd5 {[%emt 0:00:11]} 38. Rg4 {[%emt 0:05:51]} e3 {[%emt 0:04:42]} 39. Nf5 {[%emt 0:01:59]} Bf6 {[%emt 0:00:39][%cal Oe3e2]} 40. c4+ {[%emt 0:00:30]} dxc3 {[%emt 0:00:42] [#] And now ...c2+ would win.} 41. Nxe3+ {[%emt 0:00:07]} Ke6 {[%emt 0:00:40]} 42. Re4+ {[%emt 0:01:10]} Kd7 {[%emt 0:00:25]} 43. Kc2 {[%emt 0:00:43]} Rh5 {[%emt 0:00:35]} 44. h4 {[%emt 0:00:46]} b5 {[%emt 0:01:19]} 45. b4 {[%emt 0:00:23]} Bxh4 {[%emt 0:02:19]} 46. Kxc3 {[%emt 0:00:44]} Be1+ {[%emt 0:00:03]} 47. Kd3 {[%emt 0:00:48]} Rh2 {[%emt 0:00:57]} 48. Nc2 {[%emt 0:00:44]} Bg3 {[%emt 0:00:25]} 49. Rg4 {[%emt 0:00:26]} Be5 {[%emt 0:01:03]} 50. Rg5 {[%emt 0:00:19]} Ke6 {[%emt 0:00:43]} 51. Nd4+ {[%emt 0:00:24]} Bxd4 {[%emt 0:00:13]} 52. Kxd4 {[%emt 0:00:09]} Rxa2 {[%emt 0:00:08]} 53. Ke4 {[%emt 0:02:54][%mdl 32768] Weighted Error Value: White=0.06 (flawless) /Black=0.06 (flawless) . Sensor Board Error (Ke4/e5)?} 1-0

[Event "2nd Bassano Easter 2022"]
[Site "Bassano del Grappa"]
[Date "2022.04.15"]
[Round "3.2"]
[White "Basso, Pier Luigi"]
[Black "Hess, Max"]
[Result "1-0"]
[ECO "D37"]
[WhiteElo "2600"]
[BlackElo "2395"]
[Annotator "TA"]
[PlyCount "63"]
[EventDate "2022.04.14"]
[EventType "swiss"]
[EventCountry "ITA"]
[SourceTitle "playchess.com"]
[Source "ChessBase"]
[SourceQuality "1"]
[TimeControl "30/3600+30:1800+30"]

{[%evp 9,63,24,24,19,31,0,6,0,19,8,39,48,75,64,64,73,77,87,91,89,91,82,90,40,50,43,41,26,48,50,46,38,75,81,72,63,71,75,111,104,101,102,109,110,129,134,135,128,176,173,177,172,302,299,301,289]} 1. d4 {[%emt 0:10:47]} d5 {[%emt 0:01:43]} 2. c4 {[%emt 0:00:23]} e6 {[%emt 0:00:05]} 3. Nf3 {[%emt 0:00:05]} Nf6 {[%emt 0:00:24]} 4. Nc3 {[%emt 0:00:06]} a6 {[%emt 0:00:15]} 5. cxd5 {[%emt 0:00:14]} exd5 {[%emt 0:00:03]} 6. Bg5 {[%emt 0:00:27] D37: Queen's Gambit Declined: 5 Bf4.} Be6 {[%emt 0:00:17]} 7. Bxf6 {[%emt 0:00:07]} Qxf6 {[%emt 0:00:05]} 8. Qb3 {[%emt 0:00:06][%csl LRb7,LRd5] The position is equal.} Ra7 {[%emt 0:00:06]} 9. h4 {[%emt 0:00:16]} (9. Nxd5 Qd8 10. e4 c6) 9... Qd8 {[%emt 0:15:34]} 10. Ng5 {[%emt 0:02:22] [#]} Nc6 $146 {[%emt 0:03:43]} ({Predecessor:} 10... c5 11. dxc5 Nd7 12. O-O-O Nxc5 13. Qc2 Be7 14. g3 b5 15. Bg2 Rd7 16. Kb1 b4 {½-½ (122) Miton,K (2589)-Meskovs,N (2550) Germany 2021}) 11. e3 {[%emt 0:02:33]} (11. e4 {feels hotter.} Bb4 12. O-O-O Bxc3 13. bxc3 b5 14. exd5 Qxd5 15. Re1) 11... Be7 {[%emt 0:03:16]} 12. Nxe6 {[%emt 0:00:07] &Bianco is more active.} fxe6 {[%emt 0:00:05]} 13. g3 {[%emt 0:00:15]} O-O {[%emt 0:04:28]} 14. Bh3 {[%emt 0:00:28]} Qd6 {[%emt 0:00:52]} 15. O-O {[%emt 0:01:21]} Kh8 {[%emt 0:04:14]} 16. f4 {[%emt 0:01:32]} ({White should try} 16. Rac1 $16) 16... Na5 $14 {[%emt 0:13:42]} 17. Qc2 {[%emt 0:06:30]} c5 {[%emt 0:02:44]} 18. Rae1 {[%emt 0:03:57]} (18. dxc5 {with more complications.} Qxc5 19. Bxe6 Qxe3+ 20. Qf2) 18... b6 {[%emt 0:02:01]} 19. Kh2 {[%emt 0:01:48]} Nc6 {[%emt 0:03:31]} 20. Qd2 {[%emt 0:03:32]} Raa8 {[%emt 0:02:27]} 21. dxc5 {[%emt 0:06:23]} bxc5 {[%emt 0:00:05]} 22. e4 {[%emt 0:00:39][%cal Re4d5]} d4 {[%emt 0:01:35] [#]} 23. e5 $1 {[%emt 0:01:29]} dxc3 {[%emt 0:03:51]} 24. exd6 {[%emt 0:01:44]} cxd2 {[%emt 0:00:04] [#]} 25. dxe7 $1 {[%emt 0:00:06]} Nxe7 {[%emt 0:03:32]} (25... Rfe8 26. Rd1) 26. Rxe6 {[%emt 0:03:28]} Rad8 {[%emt 0:01:08]} 27. Rd1 {[%emt 0:00:10]} Nf5 {[%emt 0:01:41]} 28. Kg2 {[%emt 0:02:57]} Rf6 {[%emt 0:01:34]} (28... Nd4 $16) 29. Re2 $18 {[%emt 0:02:27]} Nd4 {[%emt 0:01:14]} 30. Rdxd2 {[%emt 0:00:00][%cal Ob2b4]} Rb8 {[%emt 0:00:00]} (30... g6 $142 31. Kf2 Rc6) 31. Re5 {[%emt 0:00:33]} Rfb6 {[%emt 0:03:19]} 32. b3 {[%emt 0:03:03] Weighted Error Value: White=0.05 (flawless) /Black=0.17 (very precise)} ({Don't do} 32. Rxc5 $6 Rxb2 33. Rc8+ Rxc8 34. Rxb2 Rc2+ 35. Rxc2 Nxc2 $18) 1-0

[Event "2nd Bassano Easter 2022"]
[Site "Bassano del Grappa"]
[Date "2022.04.15"]
[Round "3.3"]
[White "Gilevych, Artem"]
[Black "Postny, Evgeny"]
[Result "1/2-1/2"]
[ECO "D24"]
[WhiteElo "2422"]
[BlackElo "2567"]
[Annotator "TA"]
[PlyCount "72"]
[EventDate "2022.04.14"]
[EventType "swiss"]
[EventCountry "ITA"]
[SourceTitle "playchess.com"]
[Source "ChessBase"]
[SourceQuality "1"]
[TimeControl "30/3600+30:1800+30"]

{[%evp 10,72,15,3,0,12,27,20,11,19,15,12,18,15,27,0,0,-17,-8,-38,-38,-60,-21,-21,2,-23,0,-42,0,0,0,0,0,0,0,-25,0,-12,0,-24,-20,-36,0,-13,-9,-2,0,0,0,3,39,-28,-29,-23,-18,-17,0,0,3,3,9,0,0,0,8]} 1. Nf3 {[%emt 0:02:13]} d5 {[%emt 0:00:22]} 2. d4 {[%emt 0:00:12]} Nf6 {[%emt 0:00:08]} 3. c4 {[%emt 0:00:18]} e6 {[%emt 0:00:25]} 4. Nc3 {[%emt 0:00:58]} dxc4 {[%emt 0:00:15]} 5. e3 {[%emt 0:04:00]} a6 {[%emt 0:00:17]} 6. a4 {[%emt 0:02:25]} b6 {[%emt 0:00:26] D24: Queen's Gambit Accepted: 3 Nf3 Nf6 4 Nc3.} 7. Bxc4 {[%emt 0:00:07]} Bb7 {[%emt 0:00:05]} 8. O-O {[%emt 0:01:03][%cal Oe3e4]} Bb4 {[%emt 0:00:14]} 9. Qe2 {[%emt 0:01:23]} O-O {[%emt 0:01:40]} 10. Rd1 {[%emt 0:04:34]} Qe7 {[%emt 0:02:57]} 11. Bd3 {[%emt 0:02:28]} c5 {[%emt 0:02:35]} 12. Na2 {[%emt 0:00:05]} (12. e4 $5 {[%cal Re4e5]}) 12... Nc6 {[%emt 0:01:10]} 13. Nxb4 {[%emt 0:07:56]} Nxb4 {[%emt 0:00:10]} 14. Bb1 {[%emt 0:00:09]} Rfd8 {[%emt 0:08:29]} 15. Bd2 {[%emt 0:09:02]} cxd4 {[%emt 0:08:10]} (15... Bxf3 $5 16. Qxf3 cxd4 $17) 16. Nxd4 {[%emt 0:03:44] [#]} Rac8 $146 {[%emt 0:03:10]} ({Predecessor:} 16... g6 17. Qe1 a5 18. Bxb4 axb4 19. Bd3 e5 20. Nc2 b3 21. Qb4 Qe6 22. Ne1 Bd5 {½-½ (49) Edouard,R (2666)-Nakamura,H (2784) Geneve 2013}) 17. Qe1 {[%emt 0:15:01]} Nc6 {[%emt 0:06:18]} 18. Nf3 {[%emt 0:00:02]} Na5 {[%emt 0:02:40]} 19. Bxa5 {[%emt 0:01:16]} Rxd1 {[%emt 0:01:25]} 20. Qxd1 {[%emt 0:00:03]} bxa5 {[%emt 0:00:06]} 21. Bd3 {[%emt 0:01:32]} Qb4 {[%emt 0:03:22]} 22. Qe2 {[%emt 0:00:44]} Qb6 {[%emt 0:08:51]} 23. Ne5 {[%emt 0:00:08]} Rc5 {[%emt 0:04:39]} 24. f4 {[%emt 0:01:24]} g6 {[%emt 0:00:52]} 25. h3 {[%emt 0:02:51]} Rc8 {[%emt 0:07:08][%cal Bc5c8,Bc8d8,Bd8d2][%mdl 32]} 26. Kh2 {[%emt 0:00:34]} Nd5 {[%emt 0:02:06]} 27. Re1 {[%emt 0:01:47]} Nb4 {[%emt 0:02:18]} (27... Qb4 {feels hotter.} 28. Rd1 Kg7 29. Bc4 f6) 28. Bc4 {[%emt 0:00:48]} Rd8 {[%emt 0:01:06]} 29. b3 {[%emt 0:04:40]} Qd6 {[%emt 0:01:26]} 30. Ng4 {[%emt 0:00:00]} ({Better is} 30. Qf2 $14) 30... Qd2 $11 {[%emt 0:00:00]} 31. Qxd2 {[%emt 0:10:22]} Rxd2 {[%emt 0:02:26]} 32. Re2 {[%emt 0:00:01] The position is equal.} Rd1 {[%emt 0:06:04]} 33. e4 {[%emt 0:02:24][%cal Of4f5]} h5 {[%emt 0:02:55]} 34. Nf2 {[%emt 0:03:42]} Rd4 {[%emt 0:06:59]} 35. Kg3 {[%emt 0:06:24]} Kf8 {[%emt 0:04:10]} 36. Kf3 {[%emt 0:00:52]} Ke7 {[%emt 0:00:36] Weighted Error Value: White=0.12 (very precise) /Black=0.10 (very precise)} 1/2-1/2

[Event "2nd Bassano Easter 2022"]
[Site "Bassano del Grappa"]
[Date "2022.04.15"]
[Round "3.4"]
[White "Heberla, Bartlomiej"]
[Black "Colbow, Collin"]
[Result "1-0"]
[ECO "E04"]
[WhiteElo "2570"]
[BlackElo "2370"]
[Annotator "TA"]
[PlyCount "69"]
[EventDate "2022.04.14"]
[EventType "swiss"]
[EventCountry "ITA"]
[SourceTitle "playchess.com"]
[Source "ChessBase"]
[SourceQuality "1"]
[TimeControl "30/3600+30:1800+30"]

{[%evp 13,69,43,40,32,30,29,32,24,40,31,30,12,7,18,15,9,38,25,31,41,39,32,37,42,50,51,56,0,0,0,32,0,0,0,19,20,16,0,0,0,21,26,76,77,68,86,79,65,61,68,123,97,96,81,258,237,194,153]} 1. d4 {[%emt 0:02:29]} Nf6 {[%emt 0:00:06]} 2. c4 {[%emt 0:00:10]} e6 {[%emt 0:00:04]} 3. g3 {[%emt 0:00:09]} d5 {[%emt 0:01:18][%cal Bd7d5,Bd5c4][%mdl 32]} 4. Nf3 {[%emt 0:59:42]} dxc4 {[%emt 0:00:47]} 5. Bg2 {[%emt 0:00:00]} a6 {[%emt 0:01:22]} 6. O-O {[%emt 0:00:00]} Nc6 {[%emt 0:00:17]} 7. e3 {[%emt 0:00:00]} Bd7 {[%emt 0:01:53]} 8. Qe2 {[%emt 0:00:00] E04: Open Catalan: 5 Nf3.} Bd6 {[%emt 0:00:05] is currently scoring better than 8...b5.} 9. Qxc4 {[%emt 0:00:00]} O-O {[%emt 0:05:38]} 10. Rd1 {[%emt 0:00:00] White is slightly better.} Qe7 {[%emt 0:00:06]} 11. Nc3 {[%emt 0:00:00]} h6 {[%emt 0:01:02]} 12. Nd2 {[%emt 0:00:00]} e5 {[%emt 0:01:55]} 13. d5 {[%emt 0:00:00]} Na5 {[%emt 0:10:41][%cal Bc6a5,Ba5b7,Bb7c5][%mdl 32]} 14. Qe2 {[%emt 0:00:00] [#]} Rac8 $146 {[%emt 0:03:33]} ({Predecessor:} 14... b6 15. b3 Nb7 16. Bb2 Bg4 17. f3 Bd7 18. Kh1 Rfc8 19. e4 b5 20. Re1 h5 21. f4 Re8 {½-½ (21) Hartl,H (2339)-Bolz,B (2335) GER email 2016}) 15. Nde4 {[%emt 0:00:00]} Nxe4 {[%emt 0:15:00]} 16. Nxe4 {[%emt 0:00:00]} b5 {[%emt 0:01:00]} 17. Bd2 {[%emt 0:00:00]} Nb7 {[%emt 0:02:15]} 18. Rac1 {[%emt 0:00:00]} f5 {[%emt 0:01:35]} 19. Nxd6 {[%emt 0:00:00]} cxd6 {[%emt 0:00:19]} 20. Qd3 {[%emt 0:00:00]} (20. b4 $14) 20... Nc5 $11 {[%emt 0:10:10]} 21. Qa3 {[%emt 0:00:00]} Qd8 {[%emt 0:06:02]} 22. Qa5 {[%emt 0:00:00]} Qxa5 {[%emt 0:02:57]} 23. Bxa5 {[%emt 0:00:00]} f4 {[%emt 0:02:21]} 24. exf4 {[%emt 0:00:00]} exf4 {[%emt 0:00:03]} 25. gxf4 {[%emt 0:00:00]} Rxf4 {[%emt 0:00:47]} 26. b3 {[%emt 0:00:00] Against Ra4} Rcf8 {[%emt 0:01:13]} 27. Bc7 {[%emt 0:00:00] A strong pair of Bishops.} Ne4 {[%emt 0:00:52]} (27... Nb7 $11 {keeps the balance.}) 28. f3 $16 {[%emt 0:00:00]} Rxf3 {[%emt 0:00:36]} 29. Bxf3 {[%emt 0:05:23]} Rxf3 {[%emt 0:00:04] [#]} 30. Rf1 $1 {[%emt 0:00:00]} Rd3 {[%emt 0:00:00]} 31. Rcd1 $1 {[%emt 0:01:39]} Rc3 {[%emt 0:07:45]} ({Black should try} 31... Rh3 $1 $14) 32. Ba5 $36 {[%emt 0:01:11][%mdl 2048] White has strong initiative.} Rc2 {[%emt 0:01:19] [#]} 33. Rd4 $1 {[%emt 0:00:09]} Rxa2 $2 {[%emt 0:07:38]} 34. Rxe4 $18 {[%emt 0:03:06]} Rxa5 {[%emt 0:00:05]} 35. Re7 {[%emt 0:01:33] Weighted Error Value: White=0.06 (flawless) /Black=0.17 (very precise)} 1-0

[Event "2nd Bassano Easter 2022"]
[Site "Bassano del Grappa"]
[Date "2022.04.15"]
[Round "3.5"]
[White "Baum, Jonasz"]
[Black "Nesterov, Arseniy"]
[Result "0-1"]
[ECO "D35"]
[WhiteElo "2287"]
[BlackElo "2522"]
[Annotator "TA"]
[PlyCount "64"]
[EventDate "2022.04.14"]
[EventType "swiss"]
[EventCountry "ITA"]
[SourceTitle "playchess.com"]
[Source "ChessBase"]
[SourceQuality "1"]
[TimeControl "30/3600+30:1800+30"]

{[%evp 21,63,19,5,-14,40,42,33,28,45,70,52,58,86,67,72,11,28,-60,-49,-61,-70,-74,-76,-79,-75,-72,-78,-129,-92,-92,-97,-113,-91,-154,-164,-250,-262,-29989,-29990,-29995,-29996,-29996,-1216,-29999]} 1. d4 {[%emt 1:01:00]} d5 {[%emt 1:01:00]} 2. Nf3 {[%emt 0:00:30]} Nf6 {[%emt 0:00:30]} 3. c4 {[%emt 0:00:30]} e6 {[%emt 0:00:30]} 4. Nc3 {[%emt 0:00:30]} Nbd7 {[%emt 0:00:30]} 5. cxd5 {[%emt 0:00:30]} exd5 {[%emt 0:00:30]} 6. Bf4 {[%emt 0:00:30]} c6 {[%emt 0:00:30]} 7. e3 {[%emt 0:00:30]} Be7 {[%emt 0:00:30]} 8. h3 {[%emt 0:00:30]} O-O {[%emt 0:00:30]} 9. Qc2 {[%emt 0:00:30]} Re8 {[%emt 0:00:30]} 10. Bd3 {[%emt 0:00:30]} Nf8 {[%emt 0:00:30]} 11. O-O-O {[%emt 0:00:30]} Be6 {[%emt 0:00:30] has lost popularity (11...b5).} 12. Ng5 {[%emt 0:00:30] [#] D35: Queen's Gambit Declined: Exchange Variation.} c5 $146 {[%emt 0:00:30]} (12... h6 $11 13. Nf3 Ne4) ({Predecessor:} 12... Bd6 13. Bxd6 Qxd6 14. Kb1 Rac8 15. g4 c5 16. dxc5 Rxc5 17. Qd2 Qc6 18. Rc1 Rc8 19. Ne2 b6 {½-½ (41) Alexandrova,O (2265)-Karpchuk,E Alushta 1999}) 13. dxc5 $14 {[%emt 0:00:30]} Bxc5 {[%emt 0:00:30]} 14. Nxe6 {[%emt 0:00:30] White is slightly better.} fxe6 {[%emt 0:00:30]} 15. Kb1 {[%emt 0:00:30][%cal Oc3d5]} ({Don't go for} 15. Nxd5 $2 exd5 16. Kb1 (16. Qxc5 $2 Rc8 $19) 16... Qb6 $19) 15... Rc8 {[%emt 0:00:30]} 16. Qb3 {[%emt 0:00:30] Against Bb4} Bb6 {[%emt 0:00:30]} 17. e4 {[%emt 0:00:30]} N8d7 {[%emt 0:00:30]} 18. Bb5 {[%emt 0:00:30]} (18. Bd6 $16) 18... Rxc3 {[%emt 0:00:30]} (18... Nc5 $5 {[%cal Rc5b3]} 19. Qa3 Ncxe4 20. Nxe4 Nxe4 21. Bxe8 Qxe8 $11) 19. bxc3 {[%emt 0:00:30]} (19. Qxc3 $11 Nxe4 20. Qc1) 19... Nxe4 $15 {[%emt 0:00:30]} 20. Rhe1 $1 {[%emt 0:00:30]} Ndc5 {[%emt 0:00:30] Pair of Knights!} 21. Qc2 {[%emt 0:00:30] [#] Black must now prevent f3.} Rf8 {[%emt 0:00:30]} 22. Be3 {[%emt 0:00:30]} Ba5 {[%emt 0:00:30]} 23. Bxc5 {[%emt 0:00:30]} Nxc5 {[%emt 0:00:30]} 24. Ba4 {[%emt 0:00:30]} ({White should try} 24. Bd3) 24... Qh4 {[%emt 0:00:30]} 25. Bb3 {[%emt 0:00:30][%cal Oe1e6]} Rxf2 {[%emt 0:00:30] &Nero is more active.} 26. Re2 {[%emt 0:00:30]} Rf6 $36 {[%emt 0:00:30][%mdl 2048] Black has strong initiative.} ({Much worse is} 26... Rxe2 $6 27. Qxe2 Ne4 28. Kc2 $11) 27. Rd4 {[%emt 0:00:30]} ({White should play} 27. Re3) 27... Qg3 $17 {[%emt 0:00:30]} 28. Kb2 {[%emt 0:00:30]} (28. Qd1 {is a better defense.} Qd6 29. Kb2) 28... Rf1 $19 {[%emt 0:00:30][%cal Oa5c3] ...Bxc3+! is the strong threat.} 29. Rg4 $2 {[%emt 0:00:30] [#]} (29. Rd1 $19 Rxd1 30. Qxd1 Bxc3+ 31. Kb1) 29... Nd3+ {[%emt 0:00:30]} 30. Ka3 {[%emt 0:00:30]} Qd6+ {[%emt 0:00:30]} 31. Ka4 {[%emt 0:30:30]} Nc5+ {[%emt 0:30:30]} (31... Qc6+ $142 32. Ka3 Qc5+ 33. Ka4 b5+ 34. Kxa5 Qb6#) 32. Kxa5 {[%emt 0:00:30]} Qb6# {[%emt 0:00:30] Weighted Error Value: White=0.73/Black=0.48} 0-1

[Event "2nd Bassano Easter 2022"]
[Site "Bassano del Grappa"]
[Date "2022.04.15"]
[Round "3.7"]
[White "Fischer, Daniel"]
[Black "Nikolov, Momchil"]
[Result "1/2-1/2"]
[ECO "C83"]
[WhiteElo "2356"]
[BlackElo "2501"]
[Annotator "TA"]
[PlyCount "44"]
[EventDate "2022.04.14"]
[EventType "swiss"]
[EventCountry "ITA"]
[SourceTitle "playchess.com"]
[Source "ChessBase"]
[SourceQuality "1"]
[TimeControl "30/3600+30:1800+30"]

{[%evp 23,44,13,18,6,8,0,33,31,31,0,0,-54,-52,-50,-39,-58,-15,-14,-20,-19,0,-13,0]} 1. e4 {[%emt 0:00:03]} e5 {[%emt 0:00:08]} 2. Nf3 {[%emt 0:00:05]} Nc6 {[%emt 0:00:06]} 3. Bb5 {[%emt 0:00:18]} a6 {[%emt 0:00:21]} 4. Ba4 {[%emt 0:00:04]} Nf6 {[%emt 0:00:41]} 5. O-O {[%emt 0:00:11]} Nxe4 {[%emt 0:01:25]} 6. d4 {[%emt 0:00:34]} b5 {[%emt 0:00:46]} 7. Bb3 {[%emt 0:00:05]} d5 {[%emt 0:00:07]} 8. dxe5 {[%emt 0:00:04]} Be6 {[%emt 0:00:05]} 9. c3 {[%emt 0:01:12]} Be7 {[%emt 0:00:35]} 10. Bc2 {[%emt 0:00:42]} O-O {[%emt 0:00:17]} 11. Nbd2 {[%emt 0:06:48]} f5 {[%emt 0:00:33]} 12. exf6 {[%emt 0:00:10]} Nxf6 {[%emt 0:00:21]} 13. a4 {[%emt 0:02:45] Recently 13.Re1 got a lot of attention. C83: Open Ruy Lopez: 9 c3 Be7.} b4 {[%emt 0:16:06]} 14. Qe2 {[%emt 0:02:49] [#]} Qc8 $146 {[%emt 0:05:54]} ({Predecessor:} 14... Qd7 15. Re1 Bg4 16. h3 Bh5 17. Qe6+ Qxe6 18. Rxe6 Bd6 19. a5 Nd7 20. Re3 Bc5 {½-½ (41) Jakovenko,D (2724)-Sutovsky,E (2660) Poikovsky 2013}) 15. Re1 {[%emt 0:18:05] White is slightly better.} Bf5 {[%emt 0:03:13]} 16. Bxf5 {[%emt 0:04:44]} Qxf5 {[%emt 0:00:08]} 17. Nb3 {[%emt 0:07:20]} ({White should play} 17. Nf1 $11) 17... Bd6 $15 {[%emt 0:04:32]} 18. Be3 {[%emt 0:07:14]} bxc3 {[%emt 0:02:18]} 19. bxc3 {[%emt 0:00:12]} Ne5 {[%emt 0:07:40]} 20. Nbd4 {[%emt 0:03:51] The position is equal.} Nxf3+ {[%emt 0:01:26]} 21. Nxf3 {[%emt 0:00:05]} Rfe8 {[%emt 0:05:48]} 22. h3 {[%emt 0:02:02]} Bf4 {[%emt 0:09:00] Weighted Error Value: White=0.16 (very precise) /Black=0.09 (flawless)} 1/2-1/2